{"text_format":"2","workbook":"xlsx","n_sheets":1,"sheets":["Árazótábla 2022"],"not_rendered":{"charts":0,"images":0,"macros":0,"external_links":0,"defined_names":0,"comments":0,"pivot_tables":0},"unopened":[],"bounds":{"document_bytes":16777216,"sheet_cells":100000,"run_cost":"one","rows_first":2000,"rows_last":500,"rows_between":2000,"halvings":0,"cell_chars":16384,"cell_head_chars":4096},"cells_cut":0,"cells_raw":0,"read":"whole","date_system":"1900"}

{"sheet":"Árazótábla 2022","index":0,"n_rows":47,"n_cols":12,"rows_kept":47,"cut":false,"hidden":false,"merged":[[7,10,7,11],[0,0,0,3],[8,10,8,11],[9,0,9,3],[6,10,6,11],[5,10,5,11],[10,0,10,11],[11,0,11,11],[13,0,13,9],[13,10,13,11],[35,0,35,11]]}
["SZEGEDI TUDOMÁNYEGYETEM"]
[]
["Szegedi Tudományegyetem                "]
["Műszaki Igazgatóság                    ",{"$nulls":9},"Kelt:"]
["Műszaki Üzemeltetési Részleg         ",{"$nulls":9},"Készítette:"]
["6725 Szeged, Tisza Lajos krt. 107.     ",{"$nulls":9},"Cégnév"]
["                                       ",{"$nulls":9},"Székhely"]
["                                       ",null,"                                       ",{"$nulls":7},"Kapcsolattartó"]
["A munka tárgya:                       ",null,"                                       ",{"$nulls":7},"Elérhetőség"]
["SZTE szervezeti egységeinél, tanszékeinél lévő légkondicionáló berendezések beszerzése, szállítása, ill. beszerelése"]
["Kérjük, hogy az ajánlati egységárait az alábbi paraméterek szerint lebontva, tételesen a táblázat kitöltésével adja meg!                                                                                                                                                                              (A táblázat az árak tekintetében képletet tartalmaz!)"]
["* -jelölt oszlopban a tervezett lehívandó mennyiségek, csak tájékoztató jellegűek!  A keretszerződéses időszak alatt ténylegesen lehívásra kerülő mennyiségek előre nem tervezhetők, ezért az Megrendelő fenntartja a jogát, hogy a kiírásban megadott tervezett mennyiségektől eltérően hívja le a termékeket. Az eltérés mértéke: kb. ± 100 %. A keretszerződés időtartama alatt, a Vállalkozó vállalja, hogy az eseti igények alapján történő lehívásoknak eleget tesz és garantálja, hogy ajánlati árát a keretszerződés egész futamideje alatt tartani képes,  A felmerülő tényleges eseti igények alapján történnek a lehívások illetve megvalósulások."]
["Típus/Teljesítmény","Készülékfajta elllenértéke","Beszerelési munkálatok átalánydíja bármelyik split készülékre nézve","Beszerelési munkálatok átalánydíja bármelyik multi készülékre nézve (1 db kül-beltéri egység között)","Szerelési ár további megkezdett méterenként (5 m fölött)","Kondenz szivattyú (cseppvíz szabadba kijuttatásához)","*Tervezett igény / db","Nettó egységár Ft/db","ÁFA (%)","Bruttó egységár Ft/db","Tervezett nettó összesen ár/ Ft","Tervezett bruttó összesen ár/ Ft"]
["Split légkondícionáló berendezések"]
["MIDEA / 2.5 kW",0,0,null,0,0,10,{"$f":"SUM(B15:C15)","v":0},0.27,{"$f":"H15*(1+I15)","v":0},{"$f":"(G15*H15)","v":0},{"$f":"K15*(1+I15)","v":0}]
["MIDEA / 3.5 kW",0,0,null,0,0,10,0,0.27,{"$f":"H16*(1+I16)","v":0},0,{"$f":"K16*(1+I16)","v":0}]
["MIDEA / 5.3 kW",0,0,null,0,0,3,0,0.27,0,{"$f":"(G17*H17)","v":0},0]
["MIDEA / 7.1 kW",0,0,null,0,0,1,0,0.27,0,{"$f":"(G18*H18)","v":0},0]
["MIDEA / 10 kW Parapet/Mennyezeti",0,0,null,0,0,1,0,0.27,0,0,0]
["FISHER / 2.5 kW",0,0,null,0,0,10,0,0.27,0,0,0]
["FISHER / 3.5 kW",0,0,null,0,0,10,0,0.27,0,0,0]
["FISHER / 5.3 kW",0,0,null,0,0,3,0,0.27,0,0,0]
["FISHER / 7.1 kW",0,0,null,0,0,1,0,0.27,0,0,0]
["FISHER / 10 kW Parapet/Mennyezeti",0,0,null,0,0,1,0,0.27,0,0,0]
["FISHER  Kazettás/ ~ 14 kW 1 beltéri, 1 kültéri egység",0,0,null,0,0,1,0,0.27,0,{"$f":"(G25*H25)","v":0},0]
["FUJITSU / 2.5 kW",0,0,null,0,0,5,0,0.27,0,0,0]
["FUJITSU / 3.5 kW",0,0,null,0,0,5,0,0.27,0,0,0]
["FUJITSU 5.3 kW",0,0,null,0,0,2,0,0.27,0,0,0]
["FUJITSU / 7.1 kW",0,0,null,0,0,1,0,0.27,0,0,0]
["FUJITSU / 10 kW Parapet/Mennyezeti",0,0,null,0,0,1,0,0.27,0,0,0]
["TOSHIBA / 2.5 kW",0,0,null,0,0,5,0,0.27,0,0,0]
["TOSHIBA / 3.5 kW",0,0,null,0,0,5,0,0.27,0,0,0]
["TOSHIBA / 5.3 kW",0,0,null,0,0,1,0,0.27,0,0,0]
["TOSHIBA / 7.1 kW",0,0,null,0,0,1,0,0.27,0,0,0]
["TOSHIBA / 10 kW Parapet/Mennyezeti",0,0,null,0,0,1,0,0.27,0,{"$f":"(G35*H35)","v":0},0]
["Multi split légkondícionáló berendezések"]
["MIDEA / ~5.3 kW 2 beltéri, 1 kültéri egység",0,null,0,0,0,1,{"$f":"SUM(B37:C37)+2*SUM(D37)","v":0},0.27,0,{"$f":"(G37*H37)","v":0},0]
["MIDEA / ~7.1 kW 2 beltéri, 1 kültéri egység",0,null,0,0,0,1,{"$f":"SUM(B38:C38)+2*SUM(D38)","v":0},0.27,{"$f":"H38*(1+I38)","v":0},{"$f":"(G38*H38)","v":0},{"$f":"K38*(1+I38)","v":0}]
["MIDEA / ~ 7.9 kW 3 beltéri, 1 kültéri egység",0,null,0,0,0,1,{"$f":"SUM(B39:C39)+3*SUM(D39)","v":0},0.27,0,0,0]
["FISHER / ~5.3 kW 2 beltéri, 1 kültéri egység",0,null,0,0,0,1,{"$f":"SUM(B40:C40)+2*SUM(D40)","v":0},0.27,0,0,0]
["FISHER / ~7.1 kW 2 beltéri, 1 kültéri egység",0,null,0,0,0,1,{"$f":"SUM(B41:C41)+2*SUM(D41)","v":0},0.27,0,0,0]
["FISHER / ~ 7.9 kW 3 beltéri, 1 kültéri egység",0,null,0,0,0,1,{"$f":"SUM(B42:C42)+3*SUM(D42)","v":0},0.27,0,0,0]
["FUJITSU / ~5.3 kW 2 beltéri, 1 kültéri egység",0,null,0,0,0,1,{"$f":"SUM(B43:C43)+2*SUM(D43)","v":0},0.27,0,0,0]
["FUJITSU / ~7.1 kW 2 beltéri, 1 kültéri egység",0,null,0,0,0,1,{"$f":"SUM(B44:C44)+2*SUM(D44)","v":0},0.27,0,0,0]
["FUJITSU / ~ 7.9 kW 3 beltéri, 1 kültéri egység",0,null,0,0,0,1,{"$f":"SUM(B45:C45)+3*SUM(D45)","v":0},0.27,0,{"$f":"(G45*H45)","v":0},0]
[{"$nulls":5},"Nettó összesen:",null,{"$f":"SUM(H15:H35,H37:H45)","v":0},null,null,{"$f":"SUM(K37:K45,K15:K35)","v":0}]
[{"$nulls":5},"Bruttó összesen:",null,null,null,{"$f":"SUM(J15:J35,J37:J45)","v":0},null,{"$f":"SUM(L15:L35,L37:L45)","v":0}]